bitfinex-derivatives/quotes_SOLF0:USTF0_20241008
["timestamp","ask_amount","ask_price","bid_price","bid_amount"]
[1728362269256,4.8,144.63,144.6,10.65]
[1728362270449,8.2577,144.63,144.6,14.1083]
[1728362271048,3.4577,144.63,144.6,14.1083]
[1728362271548,3.4577,144.63,144.6,3.4583]
[1728362271748,3.4577,144.63,144.6,14.1083]
[1728362277145,8.2577,144.63,144.6,14.1083]
[1728362277350,3.4582,144.61,144.59,1.44312]
[1728362278858,15.45,144.63,144.59,1.44312]
[1728362279347,3.4582,144.61,144.59,1.44312]
[1728362280652,15.45,144.63,144.59,1.44312]
[1728362280653,3.4579,144.62,144.59,1.44312]
[1728362280860,15.45,144.63,144.59,1.44312]
[1728362281357,18.88185805,144.63,144.59,1.44312]
[1728362281555,3.4582,144.61,144.59,1.44312]
[1728362283357,3.4583,144.6,144.59,0.12502]
[1728362290662,14.1083,144.6,144.59,0.12502]
[1728362290854,18.9083,144.6,144.59,0.12502]
[1728362296564,3.4592,144.56,144.55,1.3658]
[1728362296767,3.4592,144.56,144.53,0.12502]
[1728362296973,3.4592,144.56,144.53,10.77502]
[1728362297365,14.1095,144.56,144.53,0.12502]
[1728362297567,10.65,144.56,144.53,0.12502]
[1728362298071,3.4595,144.55,144.53,0.12502]
[1728362298766,10.65,144.56,144.53,0.12502]
[1728362298971,3.4597,144.54,144.53,0.12502]
[1728362303573,14.1097,144.54,144.53,0.12502]
[1728362304275,18.9097,144.54,144.53,0.12502]
[1728362307170,3.4608,144.5,144.47,3.58642]
[1728362307675,3.4609,144.49,144.47,0.12502]
[1728362308878,3.4612,144.48,144.47,0.12502]
[1728362310484,14.1112,144.48,144.47,0.12502]
[1728362311787,18.9112,144.48,144.47,0.12502]
[1728362314591,4.8,144.48,144.47,0.12502]
[1728362314973,12.0234,144.52,144.47,0.12502]
[1728362315179,3.4607,144.5,144.47,3.58632]
[1728362315986,14.1107,144.5,144.47,3.58632]
[1728362316287,14.1107,144.5,144.47,0.12502]
[1728362318185,14.1107,144.5,144.47,3.58642]
[1728362320192,10.65,144.5,144.47,0.12502]
[1728362320382,10.65,144.49,144.47,0.12502]
[1728362320586,4.8,144.51,144.47,0.12502]
[1728362320587,10.65,144.48,144.47,0.12502]
[1728362320883,15.45,144.48,144.47,0.12502]
[1728362321485,18.9112,144.48,144.47,0.12502]
[1728362331292,4.8,144.48,144.47,0.12502]
[1728362332397,8.2612,144.48,144.47,0.12502]
[1728362337792,18.9112,144.48,144.47,0.12502]
[1728362338391,4.8,144.48,144.47,0.12502]
[1728362339499,18.9112,144.48,144.47,0.12502]
[1728362352116,3.4622,144.44,144.41,1.46222]
[1728362352315,14.1122,144.44,144.41,1.46222]
[1728362352512,10.65,144.44,144.41,1.46222]
[1728362352715,14.1125,144.43,144.41,1.46222]
[1728362353022,10.65,144.43,144.41,1.46222]
[1728362353213,3.4637,144.38,144.34,3.4644]
[1728362353414,10.65,144.37,144.32,10.65]
[1728362353722,10.65,144.37,144.33,1.3258]
[1728362353916,14.1139,144.37,144.33,4.7905]
[1728362354817,14.1139,144.37,144.33,1.3258]
[1728362355027,14.1139,144.37,144.34,3.4645]
[1728362355717,10.65,144.37,144.33,11.9758]
[1728362355923,3.464,144.36,144.33,15.4405]
[1728362358616,14.1139,144.37,144.34,3.4645]
[1728362359321,14.114,144.36,144.33,1.3258]
[1728362359717,3.464,144.36,144.33,1.3258]
[1728362359924,3.464,144.36,144.33,11.9758]
[1728362360523,3.464,144.36,144.33,15.4404]
[1728362361024,10.65,144.37,144.33,11.9758]
[1728362361219,14.1139,144.37,144.34,3.4645]
[1728362361629,3.4639,144.37,144.34,3.4645]
[1728362361815,14.1139,144.37,144.34,3.4645]
[1728362363225,14.1139,144.37,144.33,15.4404]
[1728362363226,3.464,144.36,144.33,15.4404]
[1728362364926,14.114,144.36,144.33,1.3258]
[1728362365133,14.114,144.36,144.29,0.12502]
[1728362365328,14.114,144.36,144.29,12.14222]
[1728362367231,10.65,144.36,144.29,0.12502]
[1728362367423,14.1154,144.31,144.29,0.12502]
[1728362368030,8.2851,144.32,144.29,0.12502]
[1728362368732,10.65,144.34,144.29,10.77502]
[1728362368926,4.82,144.34,144.29,10.77502]
[1728362369228,10.65,144.31,144.29,0.12502]
[1728362369428,14.1155,144.31,144.29,0.12502]
[1728362370129,10.65,144.31,144.29,0.12502]
[1728362370328,3.4655,144.3,144.29,0.12502]
[1728362371329,14.1153,144.31,144.29,0.12502]
[1728362371730,3.4653,144.31,144.29,0.12502]
[1728362372838,3.4655,144.3,144.29,0.12502]
[1728362373933,14.1153,144.31,144.29,0.12502]
[1728362374429,3.4653,144.31,144.29,0.12502]
[1728362374629,10.65,144.32,144.29,0.12502]
[1728362374830,14.1151,144.32,144.29,3.59062]
[1728362376429,10.65,144.32,144.29,0.12502]
[1728362376626,3.4653,144.31,144.29,0.12502]
[1728362377837,3.465,144.33,144.3,3.4653]
[1728362378139,4.86,144.34,144.29,10.77502]
[1728362378341,3.4648,144.33,144.3,4.8621]
[1728362380138,8.3243,144.35,144.32,3.4649]
[1728362380340,15.51,144.35,144.3,12.0468]
[1728362380744,10.65,144.34,144.3,1.3968]
[1728362382334,10.65,144.34,144.29,0.12502]
[1728362382535,10.65,144.31,144.29,0.12502]
[1728362383435,3.4655,144.3,144.29,0.12502]
[1728362388446,10.65,144.31,144.29,0.12502]
[1728362388636,3.4653,144.31,144.29,0.12502]
[1728362389845,4.86,144.32,144.29,10.77502]
[1728362390044,4.86,144.32,144.3,3.4655]
[1728362391438,14.1149,144.33,144.31,3.4652]
[1728362391742,14.1149,144.33,144.29,10.77502]
[1728362392547,14.1149,144.33,144.3,3.4654]
[1728362393140,10.65,144.32,144.29,0.12502]
[1728362393341,3.4653,144.31,144.29,3.59062]
[1728362398244,10.65,144.32,144.29,3.59062]
[1728362398448,10.65,144.33,144.29,3.59062]
[1728362398848,3.4651,144.32,144.29,3.59062]
[1728362401546,95.93747088,144.35,144.29,0.12502]
[1728362401751,8.3046,144.34,144.3,10.65]
[1728362401951,8.3046,144.34,144.31,10.65]
[1728362402152,8.3046,144.34,144.31,14.1151]
[1728362402747,8.3046,144.34,144.31,3.4651]
[1728362404156,3.4648,144.33,144.31,3.4651]
[1728362405554,15.49,144.34,144.31,3.4651]
[1728362405754,18.9546,144.34,144.32,3.465]
[1728362405949,15.49,144.34,144.32,3.465]
[1728362406349,10.65,144.34,144.32,3.465]
[1728362408546,104.24187088,144.35,144.32,3.465]
[1728362408747,3.4645,144.34,144.3,12.002]
[1728362408952,3.4645,144.34,144.31,3.4651]
[1728362409954,3.4649,144.33,144.3,4.8174]
[1728362412856,3.4652,144.31,144.29,3.59062]
[1728362414158,3.4655,144.3,144.29,0.12502]
[1728362417654,8.3051,144.32,144.29,3.59062]
[1728362418960,8.3051,144.32,144.29,14.24062]
[1728362419760,3.4652,144.31,144.29,10.77502]
[1728362420551,8.3051,144.32,144.29,14.24072]
[1728362422970,3.4651,144.32,144.29,14.24072]
[1728362425165,10.65,144.32,144.29,0.12502]
[1728362425764,3.4655,144.3,144.29,0.12502]
[1728362432659,14.1155,144.3,144.29,0.12502]
[1728362432856,18.9355,144.3,144.29,0.12502]
[1728362433365,15.47,144.3,144.24,1.3137]
[1728362433565,10.65,144.26,144.24,1.3137]
[1728362433765,3.4667,144.25,144.24,1.3137]
[1728362434166,10.65,144.26,144.24,1.3137]
[1728362435171,14.1166,144.26,144.24,1.3137]
[1728362436067,3.4668,144.25,144.23,0.12502]
[1728362436866,3.4669,144.24,144.23,0.12502]
[1728362437970,18.9369,144.24,144.23,0.12502]
[1728362441565,15.47,144.24,144.18,10.65]
[1728362441767,3.4678,144.21,144.18,10.65]
[1728362441972,8.2878,144.21,144.18,10.65]
[1728362442871,3.4679,144.2,144.17,0.12502]
[1728362443576,4.82,144.21,144.17,10.77502]
[1728362443771,4.82,144.21,144.18,10.65]
[1728362443971,14.07300052,144.23,144.18,10.65]
[1728362444177,4.82,144.22,144.19,3.4679]
[1728362444776,8.2875,144.22,144.19,3.4679]
[1728362445577,4.82,144.22,144.17,0.12502]
[1728362445768,3.4676,144.21,144.18,3.4682]
[1728362447178,3.4676,144.21,144.17,14.24352]
[1728362448869,15.47,144.22,144.17,14.24352]
[1728362449078,3.4679,144.2,144.17,14.24352]
[1728362449579,3.4679,144.2,144.17,3.59352]
[1728362451377,10.65,144.21,144.17,0.12502]
[1728362452468,3.4683,144.19,144.17,0.12502]
[1728362452673,8.2883,144.19,144.17,0.12502]
[1728362453077,15.47,144.19,144.17,0.12502]
[1728362453274,3.4684,144.18,144.17,0.12502]
[1728362453987,14.1184,144.18,144.17,0.12502]
[1728362456989,8.2882,144.19,144.17,0.12502]
[1728362457183,15.47,144.19,144.17,0.12502]
[1728362458589,14.1184,144.18,144.17,0.12502]
[1728362461982,3.4676,144.22,144.17,0.12502]
[1728362462192,10.65,144.21,144.17,0.12502]
[1728362462386,4.82,144.2,144.17,0.12502]
[1728362462586,8.288,144.2,144.17,3.59342]
[1728362464297,8.328,144.2,144.17,3.59342]
[1728362466683,3.4682,144.19,144.17,0.12502]
[1728362468703,3.4682,144.19,144.17,3.59362]
[1728362469797,4.86,144.2,144.17,3.59362]
[1728362469998,8.328,144.2,144.17,3.59362]
[1728362470996,3.4681,144.19,144.17,3.59362]
[1728362471291,10.65,144.19,144.17,0.12502]
[1728362471494,14.1184,144.18,144.17,0.12502]
[1728362472887,3.4684,144.18,144.17,0.12502]
[1728362473484,14.1184,144.18,144.17,0.12502]
[1728362478201,3.4684,144.18,144.17,0.12502]
[1728362478496,14.1184,144.18,144.17,0.12502]
[1728362484200,18.9784,144.18,144.17,0.12502]
[1728362485302,8.3284,144.18,144.17,0.12502]
[1728362485606,18.9784,144.18,144.17,0.12502]
[1728362486303,15.51,144.18,144.12,1.3668]
[1728362486501,10.65,144.13,144.12,1.3668]
[1728362486903,14.1196,144.13,144.12,1.3668]
[1728362487107,3.4696,144.13,144.12,1.3668]
[1728362488200,3.4696,144.13,144.11,0.12502]
[1728362489003,14.1196,144.13,144.11,0.12502]
[1728362489209,3.4698,144.12,144.11,0.12502]
[1728362490420,10.65,144.13,144.11,0.12502]
[1728362490603,14.1196,144.13,144.11,0.12502]
[1728362490806,15.51,144.14,144.11,0.12502]
[1728362491006,18.9795,144.14,144.11,3.59502]
[1728362491308,10.65,144.13,144.11,0.12502]
[1728362491509,3.4698,144.12,144.11,0.12502]
[1728362493805,14.1198,144.12,144.11,0.12502]
[1728362502319,3.4707,144.09,144.06,3.4712]
[1728362502508,15.47,144.08,144.06,3.4712]
[1728362503107,4.82,144.08,144.07,3.471]
[1728362503820,4.82,144.08,144.06,3.4712]
[1728362505420,8.2908,144.08,144.06,3.4712]
[1728362506515,8.2908,144.08,144.05,3.59642]
[1728362515416,8.2908,144.08,144.06,3.471]
[1728362515417,4.82,144.08,144.06,3.471]
[1728362516120,14.1203,144.11,144.08,3.4707]
[1728362516421,10.65,144.11,144.08,3.4707]
[1728362516621,4.82,144.1,144.05,0.12502]
[1728362516813,3.4706,144.09,144.07,10.65]
[1728362518220,3.4709,144.08,144.06,10.65]
[1728362520321,3.4709,144.08,144.05,3.59642]
[1728362520620,10.65,144.09,144.05,0.12502]
[1728362521041,3.4712,144.06,144.05,0.12502]
[1728362523019,4.82,144.07,144.05,0.12502]
[1728362523324,4.82,144.08,144.05,0.12502]
[1728362523728,3.4712,144.06,144.05,0.12502]
[1728362525331,15.47,144.08,144.05,0.12502]
[1728362525726,15.47,144.08,144.06,10.65]
[1728362525727,4.82,144.08,144.06,10.65]
[1728362525929,4.82,144.1,144.07,10.65]
[1728362526126,4.82,144.1,144.05,10.77502]
[1728362526431,10.65,144.09,144.05,0.12502]
[1728362526625,3.4711,144.07,144.05,0.12502]
[1728362527132,10.65,144.09,144.05,0.12502]
[1728362527329,3.4712,144.06,144.05,0.12502]
[1728362536321,4.82,144.08,144.05,10.77502]
[1728362536525,4.82,144.09,144.05,10.77502]
[1728362536721,4.82,144.09,144.06,10.65]
[1728362536932,4.82,144.09,144.05,14.24632]
[1728362536933,3.4708,144.08,144.05,14.24632]
[1728362537328,4.82,144.09,144.05,10.77502]
[1728362537530,4.82,144.09,144.06,3.4711]
[1728362538129,8.2907,144.09,144.06,3.4711]
[1728362538326,4.82,144.09,144.05,10.77502]
[1728362538731,8.2906,144.09,144.05,10.77502]
[1728362539134,8.2906,144.09,144.06,3.4711]
[1728362539334,3.4709,144.08,144.06,3.4711]
[1728362539728,3.4709,144.08,144.05,10.77502]
[1728362539929,3.4709,144.08,144.05,14.24632]
[1728362540639,8.2907,144.09,144.06,3.4711]
[1728362541636,3.4707,144.09,144.06,3.4711]
[1728362541839,8.2904,144.1,144.06,3.4711]
[1728362542230,8.2904,144.1,144.06,10.65]
[1728362542431,8.2904,144.1,144.07,3.471]
[1728362543028,3.4704,144.1,144.07,3.471]
[1728362543230,8.2902,144.11,144.07,3.471]
[1728362544346,3.4705,144.09,144.06,3.4711]
[1728362545048,8.2905,144.09,144.05,14.24642]
[1728362545441,15.47,144.09,144.05,0.12502]
[1728362546140,14.121,144.07,144.05,0.12502]
[1728362546440,10.65,144.13,144.05,0.12502]
[1728362546650,10.65,144.13,144.07,10.65]
[1728362546842,10.65,144.13,144.07,14.121]
[1728362547146,3.4703,144.1,144.07,10.65]
[1728362547336,4.82,144.11,144.06,10.65]
[1728362547539,15.47,144.11,144.06,10.65]
[1728362547740,3.4706,144.09,144.06,10.65]
[1728362547938,15.47,144.11,144.05,3.59632]
[1728362548332,3.4709,144.08,144.05,0.12502]
[1728362550539,3.471,144.07,144.05,0.12502]
[1728362551055,3.4712,144.06,144.05,0.12502]
[1728362552147,14.1212,144.06,144.05,0.12502]
[1728362568355,3.4725,144.01,144.0,46.30526001]
[1728362568660,19.0025,144.01,144.0,38.53326001]
[1728362569361,3.4727,144.0,143.99,0.12502]
[1728362570453,8.3527,144.0,143.99,0.12502]
[1728362571060,4.88,144.0,143.93,0.12502]
[1728362571260,3.4741,143.94,143.93,0.12502]
[1728362571957,14.1241,143.94,143.93,0.12502]
[1728362576962,19.0041,143.94,143.93,0.12502]
[1728362578166,8.3541,143.94,143.93,0.12502]
[1728362578363,19.0041,143.94,143.93,0.12502]
[1728362578766,15.53,143.94,143.91,0.46122507]
[1728362578969,10.65,143.92,143.91,0.46122507]
[1728362579268,14.1246,143.92,143.91,0.46122507]
[1728362580065,3.4749,143.91,143.9,0.81143895]
[1728362580372,4.88,143.91,143.89,0.91639547]
[1728362580569,14.1251,143.9,143.89,0.91639547]
[1728362580771,19.0051,143.9,143.89,0.91639547]
[1728362580966,8.3551,143.9,143.89,0.91639547]
[1728362581176,19.0051,143.9,143.89,0.91639547]
[1728362581977,8.3551,143.9,143.89,0.91639547]
[1728362582178,19.0051,143.9,143.89,0.91639547]
[1728362582873,3.4751,143.9,143.89,0.91639547]
[1728362583070,19.0451,143.9,143.89,0.91639547]
[1728362586978,14.1251,143.9,143.89,0.91639547]
[1728362587287,19.0451,143.9,143.89,0.91639547]
[1728362590291,15.57,143.9,143.86,0.49072401]
[1728362590492,14.1253,143.89,143.86,0.49072401]
[1728362591201,19.0453,143.89,143.86,0.49072401]
[1728362592593,22.51148854,143.89,143.86,0.49072401]
[1728362593299,11.86148854,143.89,143.86,0.49072401]
[1728362593496,22.51148854,143.89,143.86,0.49072401]
[1728362593698,6.94148854,143.89,143.86,0.49072401]
[1728362593892,22.51148854,143.89,143.86,0.49072401]
[1728362596098,19.0453,143.89,143.86,0.49072401]
[1728362596501,14.1253,143.89,143.86,0.49072401]
[1728362596800,6.9476,143.96,143.87,11.18813313]
[1728362596996,10.65,143.89,143.87,0.53813313]
[1728362597194,10.65,143.89,143.87,3.28553313]
[1728362597596,14.1253,143.89,143.87,3.28553313]
[1728362600106,3.4753,143.89,143.87,3.28553313]
[1728362602998,4.92,143.9,143.87,3.28553313]
[1728362602999,4.92,143.9,143.88,11.18147836]
[1728362603408,3.4753,143.89,143.88,11.18147836]
[1728362604410,4.92,143.91,143.88,11.18147836]
[1728362604907,4.92,143.91,143.89,10.65]
[1728362605102,3.4752,143.9,143.89,10.65]
[1728362605700,3.53239959,143.97,143.89,10.65]
[1728362605901,10.65,143.95,143.9,10.65]
[1728362606512,3.4749,143.91,143.9,10.65]
[1728362606702,4.92,143.93,143.9,10.65]
[1728362607208,3.4748,143.92,143.9,10.65]
[1728362607402,4.92,143.93,143.9,10.65]
[1728362608006,3.475,143.91,143.9,10.65]
[1728362609507,3.475,143.91,143.88,0.53147836]
[1728362609706,4.92,143.93,143.89,10.65]
[1728362610512,3.4751,143.91,143.89,10.65]
[1728362611717,3.4751,143.9,143.89,10.65]
[1728362617212,4.92,143.93,143.89,10.65]
[1728362617409,4.92,143.93,143.91,10.65]
[1728362617805,3.4746,143.92,143.91,10.65]
[1728362620619,15.57,143.93,143.88,0.53147836]
[1728362620813,15.57,143.93,143.88,11.18147836]
[1728362621214,3.4749,143.91,143.9,10.65]
[1728362622525,15.57,143.93,143.88,0.53147836]
[1728362622718,10.65,143.92,143.88,0.53147836]
[1728362623724,3.4753,143.89,143.88,0.53147836]
[1728362623925,8.3753,143.89,143.88,0.53147836]
[1728362632521,22.54754239,143.89,143.88,0.53147836]
[1728362633325,19.0253,143.89,143.88,0.53147836]
[1728362634333,22.53552032,143.89,143.88,0.53147836]
[1728362635340,11.88552032,143.89,143.88,0.53147836]
[1728362638028,8.3753,143.89,143.88,0.53147836]
[1728362640825,22.42394432,143.89,143.88,0.53147836]
[1728362647040,22.58394432,143.89,143.88,0.53147836]
[1728362648135,19.10864432,143.89,143.87,0.53813313]
[1728362648336,3.4761,143.86,143.85,0.94306384]
[1728362648527,19.1861,143.86,143.85,0.94306384]
[1728362650540,3.4763,143.85,143.84,0.77179206]
[1728362650742,14.1263,143.85,143.84,0.77179206]
[1728362654542,3.4763,143.85,143.84,0.77179206]
[1728362654737,14.1263,143.85,143.84,0.77179206]
[1728362660743,19.1863,143.85,143.84,0.77179206]
[1728362663146,1.3874,143.88,143.84,0.77179206]
[1728362663353,14.04864432,143.89,143.84,11.42179206]
[1728362663552,5.08,143.88,143.85,10.65]
[1728362663845,85.73,143.9,143.85,10.65]
[1728362663846,75.08,143.9,143.85,10.65]
[1728362664051,5.08,143.89,143.85,10.65]
[1728362664246,5.08,143.89,143.85,13.4622]
[1728362664446,8.5555,143.89,143.85,16.9384]
[1728362665243,8.5555,143.89,143.87,10.65]
[1728362665848,5.08,143.89,143.87,10.65]
[1728362666044,2.9054,143.89,143.87,10.65]
[1728362666248,5.06,143.91,143.88,10.65]
[1728362666448,5.06,143.92,143.89,10.65]
[1728362666642,8.5348,143.92,143.89,10.65]
[1728362667653,5.06,143.92,143.89,10.65]
[1728362668851,3.4749,143.91,143.89,10.65]
[1728362669054,5.06,143.92,143.89,10.65]
[1728362669856,8.5348,143.92,143.89,10.65]
[1728362671057,3.475,143.91,143.88,10.65]
[1728362671250,5.06,143.92,143.88,10.65]
[1728362672052,3.4751,143.9,143.88,10.65]
[1728362673852,3.475,143.91,143.88,10.65]
[1728362674459,8.5348,143.92,143.89,10.65]
[1728362678962,5.06,143.92,143.89,10.65]
[1728362679167,3.4749,143.91,143.89,10.65]
[1728362680769,8.5348,143.92,143.89,10.65]
[1728362681769,5.18502,143.93,143.89,10.65]
[1728362682066,3.4751,143.91,143.89,10.65]
[1728362682263,5.18502,143.93,143.89,10.65]
[1728362683363,3.4756,143.89,143.85,2.8122]
[1728362683563,3.4756,143.89,143.88,10.65]
[1728362683866,3.476,143.87,143.86,10.65]
[1728362684169,5.06,143.9,143.85,13.4622]
[1728362684768,3.4761,143.86,143.85,13.4622]
[1728362689274,3.4761,143.86,143.85,2.8122]
[1728362689476,3.4761,143.86,143.85,13.4622]
[1728362698678,3.4761,143.86,143.85,2.8122]
[1728362698881,3.4761,143.86,143.85,13.4622]
[1728362700983,10.65,143.92,143.85,13.4622]
[1728362701183,3.4756,143.88,143.87,10.65]
[1728362701686,0.12502,143.93,143.87,10.65]
[1728362701886,5.06,143.92,143.89,10.65]
[1728362702184,3.4753,143.9,143.89,10.65]
[1728362703790,3.475,143.91,143.89,10.65]
[1728362705090,5.08502,143.93,143.89,10.65]
[1728362705291,5.08502,143.93,143.9,10.65]
[1728362705989,3.59952,143.93,143.9,10.65]
[1728362706890,0.12502,143.93,143.91,10.65]
[1728362707284,3.59942,143.93,143.91,10.65]
[1728362707485,0.12502,143.93,143.91,10.65]
[1728362708394,3.4735,143.97,143.92,10.65]
[1728362708590,0.12502,143.99,143.95,10.65]
[1728362709288,10.65,143.96,143.9,1.41]
[1728362709686,10.65,143.96,143.91,10.65]
[1728362710000,0.12502,143.99,143.95,10.65]
[1728362710199,0.12502,143.99,143.98,10.65]
[1728362710488,0.12502,143.99,143.98,14.1232]
[1728362710797,0.12502,144.05,143.98,19.0832]
[1728362711001,0.12502,144.05,143.98,4.96]
[1728362711289,0.12502,144.05,144.02,10.65]
[1728362712093,3.4718,144.04,144.01,10.65]
[1728362712288,0.12502,144.05,144.01,10.65]
[1728362712887,3.472,144.04,144.01,10.65]
[1728362714296,3.4722,144.02,144.0,10.65]
[1728362714501,10.65,144.03,143.98,10.65]
[1728362714800,3.4727,144.0,143.98,10.65]
[1728362716599,3.4729,143.99,143.98,10.65]
[1728362719200,10.65,144.02,143.94,4.8822]
[1728362719405,10.65,144.02,143.96,10.65]
[1728362719604,10.65,144.0,143.96,10.65]
[1728362719803,15.61,144.0,143.94,1.4082]
[1728362720006,10.65,143.99,143.94,12.0582]
[1728362720403,1.429,144.01,143.94,1.4082]
[1728362720607,6.389,144.01,143.97,10.65]
[1728362721205,3.4727,144.0,143.97,10.65]
[1728362721407,3.4727,144.0,143.98,10.65]
[1728362721802,3.4729,144.0,143.98,10.65]
[1728362726113,1.4093,144.02,143.98,10.65]
[1728362726313,4.96,144.03,144.0,10.65]
[1728362727117,0.12502,144.05,144.02,10.65]
[1728362727312,0.12502,144.05,144.04,10.65]
[1728362727516,0.12502,144.05,144.03,6.3969]
[1728362728022,0.12502,144.05,144.03,17.0469]
[1728362728823,3.59662,144.05,144.03,12.0869]
[1728362729529,0.12502,144.05,143.97,1.335]
[1728362729716,0.12502,144.05,143.99,10.65]
[1728362729717,10.77502,144.05,143.99,10.65]
[1728362730120,3.4725,144.01,143.99,10.65]
[1728362731527,3.4724,144.02,143.99,14.1229]
[1728362732433,10.65,144.04,143.97,4.96]
[1728362732729,3.4732,143.98,143.96,10.65]
[1728362733124,3.4734,143.97,143.96,10.65]
[1728362733316,10.65,143.99,143.94,1.4369]
[1728362733521,10.65,143.99,143.94,12.0869]
[1728362733735,10.65,143.99,143.94,10.65]
[1728362734025,3.4739,143.95,143.94,10.65]
[1728362734336,3.4741,143.94,143.93,10.77502]
[1728362741732,3.4741,143.94,143.93,0.12502]
[1728362741934,14.1241,143.94,143.93,0.12502]
[1728362742121,19.2641,143.94,143.93,0.12502]
[1728362742523,3.4751,143.9,143.89,10.65]
[1728362743330,10.65,143.93,143.87,0.12502]
[1728362743535,10.65,143.92,143.87,10.77502]
[1728362744027,3.4756,143.88,143.87,10.77502]
[1728362745722,3.4756,143.88,143.87,0.12502]
[1728362753137,14.1256,143.88,143.87,0.12502]
[1728362754238,19.2656,143.88,143.87,0.12502]
[1728362757142,15.79,143.88,143.84,0.77179206]
[1728362757343,3.4763,143.85,143.84,0.77179206]
[1728362757642,8.6163,143.85,143.84,0.77179206]
[1728362758436,19.2663,143.85,143.84,0.77179206]
[1728362759536,8.6163,143.85,143.84,0.77179206]
[1728362760035,3.4763,143.85,143.84,11.42179206]
[1728362760537,3.4763,143.85,143.84,0.77179206]
[1728362761644,14.1263,143.85,143.84,0.77179206]
[1728362763334,3.4763,143.85,143.84,0.77179206]
[1728362764449,8.5763,143.85,143.84,0.77179206]
[1728362764945,3.4763,143.85,143.84,0.77179206]
[1728362768551,3.4766,143.84,143.83,0.39450155]
[1728362770848,18.0323,143.85,143.8,0.54263741]
[1728362771051,3.4773,143.81,143.8,0.54263741]
[1728362771349,8.5773,143.81,143.8,0.54263741]
[1728362779054,8.5973,143.81,143.8,0.54263741]
[1728362780450,3.4773,143.81,143.8,0.54263741]
[1728362780949,8.5973,143.81,143.8,0.54263741]
[1728362792461,3.4773,143.81,143.8,0.54263741]
[1728362792652,8.5973,143.81,143.8,0.54263741]
[1728362793460,19.2773,143.81,143.8,0.54263741]
[1728362796465,8.5973,143.81,143.8,0.54263741]
[1728362796967,3.4773,143.81,143.8,0.54263741]
[1728362797262,8.5173,143.81,143.8,0.54263741]
[1728362798960,19.1973,143.81,143.8,0.54263741]
[1728362804173,14.1573,143.81,143.8,0.54263741]
[1728362804468,19.1973,143.81,143.8,0.54263741]
[1728362810263,14.1573,143.81,143.8,0.54263741]
[1728362810468,19.1973,143.81,143.8,0.54263741]
[1728362812877,15.72,143.81,143.79,1.13392475]
[1728362813084,3.4778,143.79,143.78,0.53732341]
[1728362813771,7.0330929,143.79,143.78,0.53732341]
[1728362813973,3.4778,143.79,143.78,0.53732341]
[1728362814174,6.89643111,143.79,143.78,0.53732341]
[1728362817381,17.57643111,143.79,143.78,0.53732341]
[1728362817580,3.478,143.78,143.77,0.49303411]
[1728362817782,19.198,143.78,143.77,0.49303411]
[1728362818382,19.198,143.78,143.76,0.96002911]
[1728362818383,14.1582,143.77,143.76,0.96002911]
[1728362821489,3.4782,143.77,143.76,0.96002911]
[1728362821676,14.1582,143.77,143.76,0.96002911]